Workbook

Sheet 地價稅比較表
A1: 地價稅新舊對照計算機 | L1: 【稅率參數與查表區】
L2: 累進起點地價（P） | M2: 42165000
A3: 【土地明細輸入 - 支援 20 筆】
A4: 地號／說明 | B4: 前次地價 | C4: 本次地價 | D4: 面積 | E4: 權利範圍 | F4: 土地類型 | G4: 前次課稅值 | H4: 本次課稅值 | I4: 備註 | L4: 第 1 級門檻 | M4: 10 | N4: =$M$2*0 -> 0 | P4: =$M$2*0 -> 0
F5: 一般土地累進 | G5: =ROUND(B5*D5*J5, 0) -> 0 | H5: =ROUND(C5*D5*J5, 0) -> 0 | J5: =IF(E5="", 0, IFERROR(IF(ISNUMBER(FIND("/",E5)), LEFT(E5,FIND("/",E5)-1)/MID(E5,FIND("/",E5)+1,10), VALUE(SUBSTITUTE(E5,"%",""))/IF(ISNUMBER(FIND("%",E5)),100,1)), 0)) -> 0 | L5: 第 2 級門檻 | M5: 15 | N5: =$M$2*0.005 -> 210825 | P5: =$M$2*1 -> 42165000
F6: 一般土地累進 | G6: 0 | H6: 0 | J6: 0 | L6: 第 3 級門檻 | M6: 25 | N6: =$M$2*0.065 -> 2740725 | P6: =$M$2*6 -> 252990000
F7: 一般土地累進 | G7: 0 | H7: 0 | J7: 0 | L7: 第 4 級門檻 | M7: 35 | N7: =$M$2*0.175 -> 7378875 | P7: =$M$2*11 -> 463815000
F8: 一般土地累進 | G8: 0 | H8: 0 | J8: 0 | L8: 第 5 級門檻 | M8: 45 | N8: =$M$2*0.335 -> 14125275 | P8: =$M$2*16 -> 674640000
F9: 一般土地累進 | G9: 0 | H9: 0 | J9: 0 | L9: 第 6 級門檻 | M9: 55 | N9: =$M$2*0.545 -> 22979925 | P9: =$M$2*21 -> 885465000
F10: 一般土地累進 | G10: 0 | H10: 0 | J10: 0
F11: 一般土地累進 | G11: 0 | H11: 0 | J11: 0 | L11: 自用住宅用地 | M11: 2
F12: 一般土地累進 | G12: 0 | H12: 0 | J12: 0 | L12: 公共設施保留地 | M12: 6
F13: 一般土地累進 | G13: 0 | H13: 0 | J13: 0 | L13: 工業特殊用地 | M13: 10
F14: 一般土地累進 | G14: 0 | H14: 0 | J14: 0
F15: 一般土地累進 | G15: 0 | H15: 0 | J15: 0
F16: 一般土地累進 | G16: 0 | H16: 0 | J16: 0
F17: 一般土地累進 | G17: 0 | H17: 0 | J17: 0
F18: 一般土地累進 | G18: 0 | H18: 0 | J18: 0
F19: 一般土地累進 | G19: 0 | H19: 0 | J19: 0
F20: 一般土地累進 | G20: 0 | H20: 0 | J20: 0
F21: 一般土地累進 | G21: 0 | H21: 0 | J21: 0
F22: 一般土地累進 | G22: 0 | H22: 0 | J22: 0
F23: 一般土地累進 | G23: 0 | H23: 0 | J23: 0
F24: 一般土地累進 | G24: 0 | H24: 0 | J24: 0
A28: 【新舊地價稅額對照表】
A29: 土地類型 | B29: 前次總地價 | C29: 本次總地價 | D29: 稅率/級別 | E29: 前次稅額 | F29: 本次稅額 | G29: 差額 | H29: 增減幅
A30: 自用住宅用地 | B30: =SUMIFS(G$5:G$24, F$5:F$24, A30) -> 0 | C30: =SUMIFS(H$5:H$24, F$5:F$24, A30) -> 0 | D30: =M11 -> 2 | E30: =ROUND(B30*D30/1000, 0) -> 0 | F30: =ROUND(C30*D30/1000, 0) -> 0 | G30: =F30-E30 -> 0 | H30: =IFERROR(G30/E30, 0) -> 0
A31: 公共設施保留地 | B31: =SUMIFS(G$5:G$24, F$5:F$24, A31) -> 0 | C31: =SUMIFS(H$5:H$24, F$5:F$24, A31) -> 0 | D31: =M12 -> 6 | E31: =ROUND(B31*D31/1000, 0) -> 0 | F31: =ROUND(C31*D31/1000, 0) -> 0 | G31: =F31-E31 -> 0 | H31: =IFERROR(G31/E31, 0) -> 0 | L31: © 2026 陳定康.
A32: 工業特殊用地 | B32: =SUMIFS(G$5:G$24, F$5:F$24, A32) -> 0 | C32: =SUMIFS(H$5:H$24, F$5:F$24, A32) -> 0 | D32: =M13 -> 10 | E32: =ROUND(B32*D32/1000, 0) -> 0 | F32: =ROUND(C32*D32/1000, 0) -> 0 | G32: =F32-E32 -> 0 | H32: =IFERROR(G32/E32, 0) -> 0
A33: 一般土地累進 | B33: =SUMIFS(G$5:G$24, F$5:F$24, A33) -> 0 | C33: =SUMIFS(H$5:H$24, F$5:F$24, A33) -> 0 | D33: 累進計算 | E33: =IF(B33<=0, 0, ROUND((B33*LOOKUP(B33, $P$4:$P$9, $M$4:$M$9)/1000) - LOOKUP(B33, $P$4:$P$9, $N$4:$N$9), 0)) -> 0 | F33: =IF(C33<=0, 0, ROUND((C33*LOOKUP(C33, $P$4:$P$9, $M$4:$M$9)/1000) - LOOKUP(C33, $P$4:$P$9, $N$4:$N$9), 0)) -> 0 | G33: =F33-E33 -> 0 | H33: =IFERROR(G33/E33, 0) -> 0
A35: 年度總計地價稅額比較 | E35: =SUM(E30:E33) -> 0 | F35: =SUM(F30:F33) -> 0 | G35: =F35-E35 -> 0
